[Event "10th Cherry Blossom Classic 2023"]
[Site "Dulles"]
[Date "2023.05.29"]
[Round "7.18"]
[White "Ling, Evan"]
[Black "Prem, Pranav"]
[Result "1-0"]
[ECO "D35"]
[WhiteElo "1952"]
[BlackElo "2061"]
[Annotator "TA"]
[PlyCount "189"]
[EventDate "2023.05.24"]
[EventType "swiss"]
[EventCountry "USA"]
[SourceTitle "playchess.com"]
[Source "ChessBase"]
[SourceQuality "1"]
[TimeControl "5400+30"]

{[%evp 17,189,15,36,10,24,20,24,17,12,6,0,0,6,-92,-81,-97,-72,-64,-50,-48,-33,-26,0,-18,0,0,0,0,8,-43,-42,-54,-60,-56,-38,-74,-80,-96,-97,-90,-67,-116,0,-97,-49,-52,-26,-40,0,0,0,-25,-30,-11,0,-23,0,0,0,0,0,0,0,0,0,0,0,0,94,96,124,132,135,92,124,122,137,137,137,129,180,188,182,156,216,229,230,230,230,217,230,194,221,169,224,199,389,352,407,381,430,381,375,372,717,358,708,666,572,647,475,177,177,73,73,75,450,446,422,375,239,234,433,406,800,698,694,653,564,534,889,840,674,585,644,546,502,489,1108,1014,758,469,444,362,333,316,822,856,4133,239,239,196,196,138,138,121,29979,29980,29982,29983,29983,29984,29984,29985,29985,29980,29985,29986,29986,29987,29987,29988,29988,29989]} 1. d4 {[%emt 0:00:03]} d5 {[%emt 0:01:46]} 2. c4 {[%emt 0:00:07]} e6 {[%emt 0:00:10]} 3. Nc3 {[%emt 0:00:04]} Nf6 {[%emt 0:00:06]} 4. Nf3 {[%emt 0:00:04]} Be7 {[%emt 0:00:16]} 5. cxd5 {[%emt 0:00:04]} exd5 {[%emt 0:00:09]} 6. Bf4 {[%emt 0:00:04]} c6 {[%emt 0:01:12]} 7. e3 {[%emt 0:00:04]} Nbd7 {[%emt 0:02:49]} 8. h3 {[%emt 0:00:17]} O-O {[%emt 0:07:33]} 9. Bd3 {[%emt 0:00:05]} Re8 {[%emt 0:02:49]} 10. Bh2 {[%emt 0:00:50] D35: Queen's Gambit Declined: Exchange Variation.} Nf8 {[%emt 0:07:11]} 11. O-O {[%emt 0:01:54]} Bd6 {[%emt 0:04:13]} 12. Ne5 {[%emt 0:00:27] White has an edge.} N6d7 {[%emt 0:03:48][%cal Rd7e5]} 13. f4 {[%emt 0:13:07]} f6 {[%emt 0:02:34]} 14. Ng4 {[%emt 0:03:08] [#]} b5 $146 {[%emt 0:10:46][%cal Bb7b5,Bb5b4,Bb4c3][%mdl 32]} ({Predecessor:} 14... h5 15. Ne5 fxe5 16. fxe5 Bxe5 17. dxe5 Nxe5 18. Rxf8+ Kxf8 19. Qxh5 Nxd3 20. Rf1+ Kg8 21. Qf7+ Kh8 22. Qh5+ Kg8 23. Qf7+ Kh8 {½-½ Alekhine,A-Vidmar,M New York International Masters-02 1927 (13)}) 15. e4 {[%emt 0:04:54]} (15. Rf3 $11) 15... b4 $17 {[%emt 0:04:35]} 16. e5 {[%emt 0:00:50]} bxc3 {[%emt 0:01:11]} 17. exd6 {[%emt 0:00:36]} cxb2 {[%emt 0:00:07]} 18. Rb1 {[%emt 0:00:02]} Qb6 {[%emt 0:03:45]} (18... Rb8 $5 {[%cal Rd8a5]} 19. Bg3 Qa5 $17) 19. Kh1 {[%emt 0:19:07]} Qb4 {[%emt 0:03:35]} (19... Qxd4 $2 20. Bxh7+ Kxh7 21. Qxd4 $18) (19... Rb8 $5 {[%cal Rb6a5]}) 20. Rf2 {[%emt 0:02:14]} (20. Qc2 $5) 20... Qxd6 {[%emt 0:01:27]} (20... Kh8 {seems wilder.} 21. Rfxb2 Qxd4 22. Rc2 c5) 21. Rfxb2 {[%emt 0:00:05]} Nb6 {[%emt 0:00:49]} 22. f5 {[%emt 0:00:54]} Qd7 {[%emt 0:03:00]} 23. Qf3 {[%emt 0:04:36]} (23. Bg1 $11) 23... Nc4 $15 {[%emt 0:04:39]} 24. Qg3 {[%emt 0:02:08]} Kh8 $1 {[%emt 0:01:33]} 25. Rf2 {[%emt 0:03:53]} a5 {[%emt 0:08:32]} 26. Qh4 {[%emt 0:18:09]} Qf7 {[%emt 0:05:08]} 27. Bf4 {[%emt 0:11:18]} Ba6 {[%emt 0:02:05]} 28. Qg3 {[%emt 0:02:23]} Qa7 {[%emt 0:02:07]} 29. Bh6 {[%emt 0:04:06]} Qf7 {[%emt 0:06:43]} ({Of course not} 29... gxh6 $6 30. Nxf6 (30. Bxc4 dxc4 31. Nxf6 Qg7 $15) 30... Qg7 31. Qxg7+ Kxg7 32. Nxe8+ Rxe8 33. f6+ Kh8 34. a4 $11) 30. Bf4 {[%emt 0:00:20]} Ra7 {[%emt 0:01:46]} (30... a4 $17) 31. Rff1 {[%emt 0:03:03]} Rb7 {[%emt 0:02:08]} 32. Rxb7 {[%emt 0:01:26]} Qxb7 {[%emt 0:00:14]} 33. Re1 {[%emt 0:00:32] Prevents Qe7} Qd7 {[%emt 0:01:25]} 34. Kh2 {[%emt 0:00:42]} Rxe1 {[%emt 0:02:43]} 35. Qxe1 {[%emt 0:00:01]} Qd8 {[%emt 0:00:52]} 36. Qe2 {[%emt 0:02:38]} Bb5 {[%emt 0:00:39]} 37. a4 $1 {[%emt 0:00:59]} Ba6 {[%emt 0:01:37][%cal Bb5a6,Ba6c8,Bc8d7][%mdl 32]} 38. h4 {[%emt 0:00:54]} Bc8 {[%emt 0:00:45]} 39. g3 {[%emt 0:01:47]} Bd7 {[%emt 0:01:12][%cal Oc6c5]} 40. Bxc4 {[%emt 0:00:59]} dxc4 {[%emt 0:00:02]} 41. Ne3 {[%emt 0:00:01]} c3 {[%emt 0:01:56]} 42. Qc4 {[%emt 0:00:08]} Qe7 {[%emt 0:00:51] Prevents Bd6.} (42... c5 $11) 43. Qxc3 $16 {[%emt 0:00:07] White is more active.} Qb4 {[%emt 0:00:27]} 44. Qxb4 {[%emt 0:00:29]} axb4 {[%emt 0:00:02][%mdl 4096] Endgame KBN-KBN} 45. a5 {[%emt 0:01:58]} Bc8 {[%emt 0:00:08]} 46. Nc4 {[%emt 0:00:34]} Ba6 {[%emt 0:00:12]} 47. Nd2 {[%emt 0:00:27]} Nd7 {[%emt 0:00:22]} 48. Bd6 {[%emt 0:00:05]} g6 {[%emt 0:00:21]} (48... Be2 $16 49. Kg2 (49. Bxb4 Nb8 $16) 49... g6) 49. fxg6 $18 {[%emt 0:00:46]} ({Don't do} 49. Bxb4 $6 gxf5 50. Kg1 Kg7 $16) 49... hxg6 {[%emt 0:00:02]} 50. Bxb4 {[%emt 0:00:11]} Bb5 {[%emt 0:01:04]} (50... f5 $16 51. Nf3 Kg8) 51. g4 {[%emt 0:00:05]} Kg7 {[%emt 0:00:18]} 52. Kg3 {[%emt 0:00:02]} Be2 {[%emt 0:00:56]} 53. Kf4 {[%emt 0:00:06]} Kf7 {[%emt 0:00:16]} 54. Ne4 {[%emt 0:00:30]} Nb8 {[%emt 0:01:10]} 55. Ng3 {[%emt 0:01:02]} Bd3 {[%emt 0:00:43]} (55... Bd1 {keeps fighting.} 56. Ne4 Na6) 56. h5 {[%emt 0:01:27]} g5+ $2 {[%emt 0:00:56]} (56... Kg7 57. Ne4 gxh5 58. gxh5 Na6) 57. Kf3 {[%emt 0:00:33]} Bc2 {[%emt 0:00:02]} 58. Nf5 {[%emt 0:00:31]} Bd1+ {[%emt 0:00:16]} 59. Kg3 {[%emt 0:00:03]} Be2 {[%emt 0:00:29]} 60. Bc5 {[%emt 0:00:42]} Bd1 $2 {[%emt 0:00:39]} (60... Na6 61. Nd6+ Kg8) 61. Bb6 {[%emt 0:00:24]} (61. h6 $142 {White threatens h7 and mate.} Kg6 62. Be7) 61... Na6 $2 {[%emt 0:00:17]} (61... Be2 62. Bd8 Nd7 63. Nd6+ Kg7) 62. Bd8 {[%emt 0:00:21]} Bc2 {[%emt 0:00:32]} 63. h6 {[%emt 0:01:22] Intending h7 and mate.} Kg6 {[%emt 0:00:39]} 64. Ne7+ $2 {[%emt 0:00:47]} (64. Bxf6 Bd3 65. Bxg5) 64... Kxh6 {[%emt 0:00:02] [#]} 65. Nxc6 {[%emt 0:00:04]} (65. Ng8+ $1 $18 {is more deadly.} Kg6 66. Nxf6) 65... Be4 {[%emt 0:00:23]} 66. Ne7 {[%emt 0:00:18] Strongly threatening Ng8+.} Nb4 $2 {[%emt 0:00:25][%mdl 8192]} (66... Kg7 $16) 67. Ng8+ {[%emt 0:00:07][%mdl 64] Discovered Attack} Kg6 {[%emt 0:00:13]} 68. Nxf6 {[%emt 0:00:13]} ({Not} 68. Bxf6 Kf7 $11) 68... Bb7 {[%emt 0:00:27]} 69. Nd7 {[%emt 0:00:19] And now Ne5+ would win.} Na6 $2 {[%emt 0:00:20]} (69... Nc6) 70. Ne5+ {[%emt 0:00:21]} Kh6 {[%emt 0:00:18]} (70... Kg7 $142 71. Bxg5 Nc7) 71. Nf7+ {[%emt 0:00:05]} Kg6 {[%emt 0:00:05]} 72. Nxg5 {[%emt 0:00:09]} Nb4 {[%emt 0:00:09]} 73. Ne6 {[%emt 0:00:20] Bb6 is the strong threat.} Bc8 {[%emt 0:00:20]} 74. Nc5 {[%emt 0:01:20]} Kf7 {[%emt 0:01:35]} 75. Bb6 {[%emt 0:00:05]} Kf6 {[%emt 0:00:23]} 76. Ne4+ {[%emt 0:00:11]} Kg6 {[%emt 0:00:08]} 77. Nc3 {[%emt 0:01:16]} Bb7 {[%emt 0:00:13]} (77... Kf6 $142 78. Ne4+ Kg6) 78. Nb5 {[%emt 0:00:38]} Kg5 {[%emt 0:01:02]} 79. Bd8+ {[%emt 0:00:56]} Kg6 {[%emt 0:00:04]} 80. Kh4 {[%emt 0:00:08] Hoping for Bb6.} Ba6 {[%emt 0:01:44]} 81. Nc7 {[%emt 0:00:36] Threatens to win with Nxa6.} Bb7 $2 {[%emt 0:00:04] [#]} (81... Bc4 82. Kg3 Kf7) 82. d5 $1 {[%emt 0:01:40] aiming for d6.} Nxd5 {[%emt 0:00:35]} (82... Na6 83. d6) 83. Nxd5 $2 {[%emt 0:00:11]} (83. a6 Bc6 84. Ne6) 83... Bxd5 {[%emt 0:00:02] KB-KB} 84. Kg3 {[%emt 0:00:52]} Kf7 {[%emt 0:00:13]} 85. Kf4 {[%emt 0:00:07]} (85. g5 $18) 85... Ke6 {[%emt 0:00:27]} 86. a6 {[%emt 0:00:35] Threatening mate with g5.} Kd6 $2 {[%emt 0:01:43][%mdl 8192] [#]} (86... Kd7 $16) 87. g5 $1 {[%emt 0:01:08][%cal Bg4g5,Bg5g6,Bg6g7][%mdl 32] White mates.} Ke6 {[%emt 0:01:45]} 88. g6 {[%emt 0:00:05]} Bc6 {[%emt 0:00:34]} 89. Kg5 {[%emt 0:00:43]} Be4 {[%emt 0:00:08]} 90. Kh6 {[%emt 0:00:43]} Bd3 {[%emt 0:00:31]} 91. Bb6 {[%emt 0:00:30]} Ke7 {[%emt 0:00:49]} 92. g7 {[%emt 0:00:22]} Kf7 {[%emt 0:00:22]} 93. a7 {[%emt 0:00:22]} Be4 {[%emt 0:00:03] [#]} 94. a8=Q $1 {[%emt 0:00:17][%mdl 64] Deflection, Promotion} Bxa8 {[%emt 0:00:03]} 95. Kh7 {[%emt 0:00:03] Weighted Error Value: White=0.15 (very precise) /Black=0.25 (precise)} 1-0

[Event "10th Cherry Blossom Classic 2023"]
[Site "Dulles"]
[Date "2023.05.29"]
[Round "7.19"]
[White "Laddha, Yash Jayesh"]
[Black "Slade, Theodore"]
[Result "1-0"]
[ECO "C65"]
[WhiteElo "2195"]
[BlackElo "2021"]
[Annotator "TA"]
[PlyCount "123"]
[EventDate "2023.05.24"]
[EventType "swiss"]
[EventCountry "USA"]
[SourceTitle "playchess.com"]
[Source "ChessBase"]
[SourceQuality "1"]
[TimeControl "5400+30"]

{[%evp 9,123,16,29,10,12,7,9,0,0,6,6,7,0,0,0,0,20,19,39,30,33,30,37,11,20,0,15,0,0,0,0,0,10,0,0,0,0,0,0,0,12,0,0,0,0,0,0,-12,11,11,11,12,12,0,14,25,18,13,47,29,48,53,58,28,43,12,18,0,52,50,50,50,50,45,74,53,58,21,31,30,24,0,223,36,28,0,339,344,29973,29974,29974,29974,29974,29975,29975,29976,29975,29976,29981,29981,29982,29983,29983,29984,29984,29985,29986,29986,29987,29984,29988,29989,29989,29987,29987,29987]} 1. e4 {[%emt 0:00:02]} e5 {[%emt 0:00:05]} 2. Nf3 {[%emt 0:00:03]} Nc6 {[%emt 0:00:12]} 3. Bb5 {[%emt 0:00:04]} Nf6 {[%emt 0:00:22]} 4. d3 {[%emt 0:00:04]} Bc5 {[%emt 0:00:11]} 5. Bxc6 {[%emt 0:00:07]} dxc6 {[%emt 0:00:08]} 6. Nbd2 {[%emt 0:00:04] C65: Ruy Lopez: Berlin Defence (3...Nf6), unusual lines and 4 0-0 Bc5.} Be6 {[%emt 0:00:29]} 7. O-O {[%emt 0:00:07]} Nd7 {[%emt 0:02:29] 7...Bd6 deserves study.} 8. Nb3 {[%emt 0:00:09] Threatening Nxc5. The position is equal.} Bb6 {[%emt 0:01:01]} 9. Ng5 {[%emt 0:00:12]} Bxb3 {[%emt 0:01:13]} 10. axb3 {[%emt 0:00:07]} f6 {[%emt 0:00:26]} 11. Nf3 {[%emt 0:00:04][%cal Bg5f3,Bf3d2,Bd2c4][%mdl 32]} ({Much worse is} 11. Ne6 Qe7 12. Qg4 g6 $15) 11... Qe7 {[%emt 0:07:25]} 12. Nd2 {[%emt 0:02:40]} O-O {[%emt 0:07:29] [#]} 13. Nc4 $146 {[%emt 0:02:31]} ({Predecessor:} 13. Kh1 Bc5 14. Nc4 Bd6 15. f4 exf4 16. Nxd6 cxd6 17. Bxf4 a6 18. Qe1 Ne5 19. Bg3 {0-1 Tiglon,B (2368)-Moradiabadi,E (2537) US Open-120 Armageddon blitz 2019 (1)}) 13... Rfd8 {[%emt 0:04:57]} 14. Kh1 {[%emt 0:20:11]} Nc5 {[%emt 0:03:22]} 15. Qg4 {[%emt 0:01:22]} Qd7 {[%emt 0:08:02]} 16. Qg3 {[%emt 0:01:15]} Ne6 {[%emt 0:00:36]} 17. Be3 {[%emt 0:11:47]} Bxe3 {[%emt 0:02:42]} 18. Nxe3 {[%emt 0:08:00]} a5 {[%emt 0:03:20]} 19. Qh4 {[%emt 0:08:55]} Qd4 {[%emt 0:03:38]} 20. Qg4 {[%emt 0:02:05]} Qd7 {[%emt 0:02:35]} 21. Qh4 {[%emt 0:01:54]} b6 {[%emt 0:01:43]} 22. g3 {[%emt 0:01:03]} Nd4 {[%emt 0:08:39]} 23. f4 {[%emt 0:07:28]} exf4 {[%emt 0:07:20]} 24. Qxf4 {[%emt 0:03:12]} Qd6 {[%emt 0:01:56]} 25. Qf2 {[%emt 0:03:23]} (25. Qg4 {keeps more tension.} c5 26. Rf2 Nc6 27. Nf5) 25... Re8 {[%emt 0:01:53]} 26. Qf4 {[%emt 0:05:00]} Rad8 {[%emt 0:03:17][%cal Ba8d8,Bd8d3,Bd3b3,Bb3b4,Bb4d4][%mdl 32]} 27. Rae1 {[%emt 0:00:32]} Qxf4 {[%emt 0:01:00]} 28. gxf4 {[%emt 0:00:15]} Nxc2 {[%emt 0:05:59][%mdl 64] [#] Discovered Attack} 29. Nxc2 {[%emt 0:00:05] Strongly threatening Rf3.} Rxd3 {[%emt 0:00:09]} 30. Rf2 {[%emt 0:02:24]} Rxb3 {[%emt 0:02:38]} 31. Na3 {[%emt 0:02:17]} Rb4 {[%emt 0:02:56]} 32. e5 {[%emt 0:01:20]} fxe5 {[%emt 0:04:45]} 33. fxe5 {[%emt 0:00:12]} Rd4 {[%emt 0:01:27]} 34. e6 {[%emt 0:03:21]} Rd6 {[%emt 0:01:41]} 35. Rfe2 $1 {[%emt 0:00:10]} b5 {[%emt 0:00:46]} 36. Kg1 {[%emt 0:02:05]} Kf8 {[%emt 0:00:53]} 37. Rf1+ {[%emt 0:00:13]} Kg8 {[%emt 0:00:25]} 38. Rfe1 {[%emt 0:03:28]} g6 {[%emt 0:02:48]} (38... Kf8 $1 $11) 39. Nb1 $14 {[%emt 0:02:22]} Re7 {[%emt 0:01:52]} 40. Nd2 {[%emt 0:02:47]} a4 $1 {[%emt 0:01:41] Wards off Nb3} 41. Nf3 {[%emt 0:01:18]} h6 {[%emt 0:00:24]} 42. Re4 {[%emt 0:01:11]} c5 {[%emt 0:01:17]} 43. R1e2 {[%emt 0:02:22]} c6 {[%emt 0:00:44]} 44. Kf2 {[%emt 0:00:41]} Kg7 {[%emt 0:00:20]} 45. h4 {[%emt 0:00:26]} Rd3 $2 {[%emt 0:01:05] [#]} (45... Kf6 $1 $11 {and Black is okay.}) 46. Rc2 $2 {[%emt 0:01:16]} (46. h5 $1 $18 {[%cal Rh5g6]}) 46... Rd5 {[%emt 0:00:58]} 47. Rce2 {[%emt 0:00:43]} Kf6 $2 {[%emt 0:00:28][%mdl 8192] White now steadily converts the win.} (47... Rd3 $11 {and Black stays safe.}) 48. Ne5 $18 {[%emt 0:00:23]} Rd6 $2 {[%emt 0:01:29]} (48... Kg7 $18 49. Nxc6 Re8) 49. Rf4+ {[%emt 0:00:21] White mates.} Kg7 {[%emt 0:00:09]} 50. Rf7+ {[%emt 0:00:07]} Rxf7+ {[%emt 0:00:04]} 51. Nxf7 {[%emt 0:00:17]} ({Weaker is} 51. exf7 h5 $16) 51... Rxe6 {[%emt 0:01:32]} 52. Rxe6 {[%emt 0:00:01]} Kxf7 {[%emt 0:00:08]} 53. Rxc6 {[%emt 0:00:04] KR-KP} b4 {[%emt 0:01:06]} 54. Rxc5 {[%emt 0:00:05]} a3 {[%emt 0:00:05]} 55. bxa3 {[%emt 0:00:03]} bxa3 {[%emt 0:00:04] KR-K3P} 56. Ra5 {[%emt 0:00:03]} Kf6 {[%emt 0:00:45]} 57. Rxa3 {[%emt 0:00:03]} Kf5 {[%emt 0:00:14]} 58. Kf3 {[%emt 0:00:04]} Ke6 {[%emt 0:00:16]} 59. Kf4 {[%emt 0:00:05]} Kf6 {[%emt 0:00:07]} 60. Ra6+ {[%emt 0:00:04]} Kg7 {[%emt 0:00:51]} 61. Kg4 {[%emt 0:00:03]} Kf7 {[%emt 0:00:07]} 62. h5 {[%emt 0:00:03] Weighted Error Value: White=0.10 (very precise) /Black=0.29 (precise)} 1-0

[Event "10th Cherry Blossom Classic 2023"]
[Site "Dulles"]
[Date "2023.05.29"]
[Round "7.20"]
[White "Baim, Elvin"]
[Black "Michelle Catherina, P."]
[Result "0-1"]
[ECO "E52"]
[WhiteElo "1728"]
[BlackElo "2193"]
[Annotator "TA"]
[PlyCount "56"]
[EventDate "2023.05.24"]
[EventType "swiss"]
[EventCountry "USA"]
[SourceTitle "playchess.com"]
[Source "ChessBase"]
[SourceQuality "1"]
[TimeControl "5400+30"]

{[%evp 17,56,0,16,2,0,-25,-22,-23,-23,-12,-25,-22,0,4,49,27,19,-16,28,8,8,-4,-7,-4,-4,-6,-9,-5,-12,-30,-6,-62,-34,-44,-18,-931,-901,-1449,-1439,-29997,0]} 1. d4 {[%emt 0:00:02]} Nf6 {[%emt 0:04:32]} 2. c4 {[%emt 0:00:15]} e6 {[%emt 0:00:07]} 3. Nc3 {[%emt 0:00:05]} Bb4 {[%emt 0:00:18]} 4. Bd2 {[%emt 0:01:19]} d5 {[%emt 0:01:13]} 5. e3 {[%emt 0:00:52]} O-O {[%emt 0:01:00]} 6. Nf3 {[%emt 0:00:15]} b6 {[%emt 0:02:47]} 7. cxd5 {[%emt 0:18:55]} exd5 {[%emt 0:00:52]} 8. Bd3 {[%emt 0:03:37]} Bb7 {[%emt 0:04:09]} 9. O-O {[%emt 0:01:23]} Bd6 {[%emt 0:02:46]} 10. Ne5 {[%emt 0:36:19] E52: Nimzo-Indian: Rubinstein: 4...0-0 5 Nf3 d5 6 Bd3 b6.} c5 {[%emt 0:02:35]} 11. f4 {[%emt 0:14:57]} Nc6 {[%emt 0:05:51]} 12. Ne2 {[%emt 0:07:51] The position is equal.} Ne4 {[%emt 0:04:15]} 13. Bxe4 {[%emt 0:02:23]} dxe4 {[%emt 0:00:03]} 14. Bc3 {[%emt 0:00:46] [#]} Nxe5 $146 {[%emt 0:08:01]} ({Predecessor:} 14... Ne7 15. dxc5 Bxc5 16. Bd4 Rc8 17. Bxc5 Rxc5 {½-½ Lopes,M (2193)-Peiro Fernandez,J (2212) CUB-POR email 2019 [25]}) 15. fxe5 {[%emt 0:01:01]} Bc7 {[%emt 0:03:23][%cal Bd6c7,Bc7d8,Bd8g5,Bg5e3][%mdl 32]} 16. Nf4 {[%emt 0:00:55]} (16. Ng3 $5 {[%cal Rd1g4]}) 16... Qg5 {[%emt 0:09:48]} 17. Qh5 {[%emt 0:00:47]} Bd8 {[%emt 0:17:34]} (17... Qxh5 {simplifies} 18. Nxh5 cxd4 19. exd4 b5) 18. Qxg5 {[%emt 0:00:49]} Bxg5 {[%emt 0:00:03]} 19. g3 {[%emt 0:00:30]} cxd4 {[%emt 0:05:37]} 20. exd4 {[%emt 0:02:00]} f6 {[%emt 0:01:08]} 21. Ne6 {[%emt 0:01:45]} Be3+ {[%emt 0:01:49]} 22. Kg2 {[%emt 0:00:00]} Rf7 {[%emt 0:01:13] And now ...fxe5 would win.} 23. Rae1 {[%emt 0:02:21]} Bh6 {[%emt 0:01:30]} (23... Bd2 $5 24. Bxd2 e3+ {[%mdl 64] Discovered Attack} 25. Kg1 exd2 $15) 24. Nf4 {[%emt 0:00:54]} ({White should play} 24. exf6 $11 e3+ 25. Kg1) 24... fxe5 {[%emt 0:00:43]} 25. dxe5 {[%emt 0:00:15]} Raf8 {[%emt 0:05:22]} 26. Ne6 $2 {[%emt 0:01:30][%mdl 8192]} (26. e6 $11 Rf5 27. e7) 26... e3+ $19 {[%emt 0:03:55]} 27. Kg1 {[%emt 0:00:36] [#]} Rf2 $1 {[%emt 0:00:15]} 28. Nxf8 {[%emt 0:01:05]} (28. Rxf2 exf2+) 28... Rg2+ {[%emt 0:00:12][%mdl 32768] Weighted Error Value: White=0.98/Black=0.12 (very precise) . Loss on time!?} 0-1

[Event "10th Cherry Blossom Classic 2023"]
[Site "Dulles"]
[Date "2023.05.29"]
[Round "7.21"]
[White "Shoykhet, Benjamin"]
[Black "Ismayilova, Khanim"]
[Result "0-1"]
[ECO "A13"]
[WhiteElo "1919"]
[BlackElo "1562"]
[Annotator "RC"]
[PlyCount "80"]
[EventDate "2023.05.24"]
[EventType "swiss"]
[EventCountry "USA"]
[SourceTitle "playchess.com"]
[Source "ChessBase"]
[SourceQuality "1"]
[TimeControl "5400+30"]

1. c4 {[%emt 0:00:04]} e6 {[%emt 0:00:08]} 2. g3 {[%emt 0:00:10]} d5 {[%emt 0:00:17]} 3. Bg2 {[%emt 0:00:13]} d4 {[%emt 0:00:16]} 4. e3 {[%emt 0:00:41]} c5 {[%emt 0:02:28]} 5. exd4 {[%emt 0:00:46]} cxd4 {[%emt 0:00:29]} 6. d3 {[%emt 0:00:06]} Nf6 {[%emt 0:03:21]} 7. Nf3 {[%emt 0:03:55]} Nc6 {[%emt 0:05:06]} 8. O-O {[%emt 0:00:34]} Be7 {[%emt 0:00:25]} 9. Na3 {[%emt 0:04:05]} O-O {[%emt 0:07:23]} 10. Nc2 {[%emt 0:05:24]} e5 {[%emt 0:00:59]} 11. Re1 {[%emt 0:04:16]} Bg4 {[%emt 0:02:47]} 12. h3 {[%emt 0:08:33]} Bxf3 {[%emt 0:00:14]} 13. Bxf3 {[%emt 0:00:05]} Nd7 {[%emt 0:03:44]} 14. Bd2 {[%emt 0:00:36]} a5 {[%emt 0:03:41]} 15. a3 {[%emt 0:01:26]} Nc5 {[%emt 0:09:06]} 16. Qe2 {[%emt 0:04:55]} Nb3 {[%emt 0:03:33]} 17. Rad1 {[%emt 0:00:08]} Bd6 {[%emt 0:03:25]} 18. Bd5 {[%emt 0:02:09]} Kh8 {[%emt 0:08:02]} 19. Qf3 {[%emt 0:04:22]} Qb6 {[%emt 0:09:14]} 20. Na1 {[%emt 0:22:46]} Nxd2 {[%emt 0:04:48]} 21. Rxd2 {[%emt 0:01:52]} f5 {[%emt 0:00:16]} 22. h4 {[%emt 0:03:21]} e4 {[%emt 0:06:13]} 23. dxe4 {[%emt 0:00:36]} f4 {[%emt 0:00:23]} 24. e5 {[%emt 0:03:53]} fxg3 {[%emt 0:05:25]} 25. Qxg3 {[%emt 0:00:20]} Bxe5 {[%emt 0:01:56]} 26. Rxe5 {[%emt 0:03:28]} Nxe5 {[%emt 0:00:07]} 27. Qxe5 {[%emt 0:00:10]} Rae8 {[%emt 0:00:32]} 28. Qxd4 {[%emt 0:04:55]} Re1+ {[%emt 0:00:12]} 29. Kg2 {[%emt 0:00:10]} Qg6+ {[%emt 0:01:21]} 30. Kh3 {[%emt 0:00:12]} Rxa1 {[%emt 0:03:06]} 31. Bxb7 {[%emt 0:01:37]} Qe6+ {[%emt 0:03:07]} 32. Qg4 {[%emt 0:01:22]} Qb6 {[%emt 0:00:58]} 33. Rd7 {[%emt 0:00:33]} Qxb2 {[%emt 0:01:02]} 34. Be4 {[%emt 0:05:33]} Rxa3+ {[%emt 0:00:31]} 35. Bd3 {[%emt 0:02:25]} Qf6 {[%emt 0:01:26]} 36. f4 {[%emt 0:01:23]} Rd8 {[%emt 0:00:54]} 37. Qe2 {[%emt 0:04:35]} Rxd3+ {[%emt 0:00:16]} 38. Rxd3 {[%emt 0:00:43]} Qf5+ {[%emt 0:00:06]} 39. Kg2 {[%emt 0:00:06]} Qxd3 {[%emt 0:00:05]} 40. Qe6 {[%emt 0:01:07]} Qg6+ {[%emt 0:13:08]} 0-1

[Event "10th Cherry Blossom Classic 2023"]
[Site "Dulles"]
[Date "2023.05.29"]
[Round "7.22"]
[White "Vinod, Aarush"]
[Black "Samuelson, Andrew"]
[Result "0-1"]
[ECO "B06"]
[WhiteElo "1914"]
[BlackElo "2019"]
[Annotator "RC"]
[PlyCount "104"]
[EventDate "2023.05.24"]
[EventType "swiss"]
[EventCountry "USA"]
[SourceTitle "playchess.com"]
[Source "ChessBase"]
[SourceQuality "1"]
[TimeControl "5400+30"]

1. e4 {[%emt 0:00:01]} c5 {[%emt 0:00:05]} 2. Nc3 {[%emt 0:00:02]} g6 {[%emt 0:00:07]} 3. d4 {[%emt 0:00:03]} Bg7 {[%emt 0:00:09]} 4. dxc5 {[%emt 0:00:06]} Qa5 {[%emt 0:00:23]} 5. Bd2 {[%emt 0:00:03]} Qxc5 {[%emt 0:00:16]} 6. Nd5 {[%emt 0:00:02]} Na6 {[%emt 0:04:57]} 7. Nf3 {[%emt 0:11:18]} e6 {[%emt 0:20:07]} 8. Bc3 {[%emt 0:11:10]} Bxc3+ {[%emt 0:00:13]} 9. Nxc3 {[%emt 0:00:06]} Ne7 {[%emt 0:03:35]} 10. Bxa6 {[%emt 0:01:26]} bxa6 {[%emt 0:00:05]} 11. Qd2 {[%emt 0:00:23]} Bb7 {[%emt 0:01:17]} 12. O-O-O {[%emt 0:01:19]} Rd8 {[%emt 0:02:38]} 13. h4 {[%emt 0:09:23]} h6 {[%emt 0:01:32]} 14. Nd4 {[%emt 0:06:51]} Qc7 {[%emt 0:04:37]} 15. f4 {[%emt 0:01:31]} f5 {[%emt 0:00:29]} 16. h5 {[%emt 0:06:45]} fxe4 {[%emt 0:00:40]} 17. hxg6 {[%emt 0:00:23]} Nxg6 {[%emt 0:00:56]} 18. f5 {[%emt 0:00:34]} exf5 {[%emt 0:00:22]} 19. Nxf5 {[%emt 0:08:45]} d5 {[%emt 0:00:08]} 20. Ne2 {[%emt 0:04:43]} Qe5 {[%emt 0:01:33]} 21. g4 {[%emt 0:01:22]} Bc8 {[%emt 0:02:22]} 22. Rdf1 {[%emt 0:05:48]} d4 {[%emt 0:03:12]} 23. Rxh6 {[%emt 0:02:05]} e3 {[%emt 0:01:22]} 24. Rxh8+ {[%emt 0:00:16]} Nxh8 {[%emt 0:00:45]} 25. Qb4 {[%emt 0:01:18]} Ng6 {[%emt 0:06:24]} 26. Nfxd4 {[%emt 0:04:42]} Ne7 {[%emt 0:04:02]} 27. Qa4+ {[%emt 0:03:39]} Bd7 {[%emt 0:00:39]} 28. Qxa6 {[%emt 0:01:01]} Bxg4 {[%emt 0:00:24]} 29. Qa4+ {[%emt 0:03:14]} Rd7 {[%emt 0:00:36]} 30. Qb3 {[%emt 0:08:15]} Rxd4 {[%emt 0:02:12]} 31. Nxd4 {[%emt 0:01:28]} Qxd4 {[%emt 0:00:11]} 32. Qb5+ {[%emt 0:01:12]} Bd7 {[%emt 0:02:46]} 33. Qb8+ {[%emt 0:01:01]} Nc8 {[%emt 0:00:40]} 34. Qf4 {[%emt 0:00:55]} Qxf4 {[%emt 0:08:54]} 35. Rxf4 {[%emt 0:00:06]} Nd6 {[%emt 0:00:03]} 36. c4 {[%emt 0:01:07]} Ke7 {[%emt 0:00:29]} 37. c5 {[%emt 0:02:18]} Nf5 {[%emt 0:00:06]} 38. c6 {[%emt 0:00:44]} Bc8 {[%emt 0:00:04]} 39. Ra4 {[%emt 0:00:31]} a6 {[%emt 0:00:08]} 40. Kd1 {[%emt 0:00:52]} Kd6 {[%emt 0:00:10]} 41. Rc4 {[%emt 0:00:52]} Kd5 {[%emt 0:00:24]} 42. b3 {[%emt 0:01:24]} Nd6 {[%emt 0:00:10]} 43. Rh4 {[%emt 0:02:19]} Kxc6 {[%emt 0:00:11]} 44. Rh6 {[%emt 0:00:10]} Bg4+ {[%emt 0:00:15]} 45. Kc2 {[%emt 0:00:47]} Kd5 {[%emt 0:00:28]} 46. Kd3 {[%emt 0:00:19]} e2 {[%emt 0:00:16]} 47. Kd2 {[%emt 0:00:38]} Ne4+ {[%emt 0:00:17]} 48. Ke1 {[%emt 0:00:02]} Nc5 {[%emt 0:00:21]} 49. Kd2 {[%emt 0:00:52]} Bf3 {[%emt 0:01:49]} 50. Rh3 {[%emt 0:00:46]} Nd3 {[%emt 0:00:16]} 51. Rxf3 {[%emt 0:00:30]} e1=Q+ {[%emt 0:00:05]} 52. Kxd3 {[%emt 0:00:08]} Qe4+ {[%emt 0:00:06]} 0-1